bitfinex-derivatives/quotes_ETHF0:USTF0_20250505
["timestamp","ask_amount","ask_price","bid_price","bid_amount"]
[1746481955496,6.9398,1818.6,1818.5,1.19995889]
[1746481955696,8.6454,1818.6,1818.5,1.19995889]
[1746481955894,8.6454,1818.6,1818.5,6.19995889]
[1746481956089,6.9398,1818.6,1818.5,7.03535889]
[1746481956285,6.9398,1818.6,1818.5,7.84745889]
[1746481956890,3.732,1818.6,1818.5,7.84745889]
[1746481957997,14.05960164,1818.8,1818.7,1.09985]
[1746481958402,14.05960164,1818.8,1818.7,1.19983889]
[1746481959097,17.79160164,1818.8,1818.7,1.19983889]
[1746481959398,8.6454,1818.8,1818.7,1.19983889]
[1746481960894,5.4376,1818.8,1818.7,1.19983889]
[1746481963298,6.53739,1818.8,1818.7,1.19983889]
[1746481963494,6.53739,1818.8,1818.7,0.09998889]
[1746481964704,6.53739,1818.8,1818.7,1.19983889]
[1746481965803,5.4376,1818.8,1818.7,1.19983889]
[1746481966203,5.4376,1818.8,1818.7,2.88093889]
[1746481968007,3.732,1818.8,1818.7,2.88093889]
[1746481972412,6.1354,1818.8,1818.7,2.88093889]
[1746481973309,3.732,1818.8,1818.7,2.88093889]
[1746481976410,3.73834818,1818.8,1818.7,2.88093889]
[1746481977115,3.73834818,1818.8,1818.7,3.73273889]
[1746481978915,3.73834818,1818.8,1818.7,1.19983889]
[1746481979215,8.06533818,1818.8,1818.7,1.19983889]
[1746481979514,1.10021,1818.1,1818.0,40.8]
[1746481979709,1.10021,1818.1,1818.0,42.4933]
[1746481980213,6.41661,1818.1,1818.0,42.4933]
[1746481980415,6.41661,1818.1,1818.0,41.90027]
[1746481980609,6.41661,1818.1,1817.9,7.2897937]
[1746481980610,1.10027,1818.0,1817.9,7.2897937]
[1746481980819,3.49517,1818.0,1817.9,7.2897937]
[1746481981114,3.49517,1818.0,1817.9,48.0897937]
[1746481981315,7.22717,1818.0,1817.9,48.0897937]
[1746481981708,7.22717,1818.0,1817.9,49.1901237]
[1746481982009,7.22717,1818.0,1817.9,48.0897937]
[1746481982716,7.22717,1818.0,1817.9,7.2897937]
[1746481983519,1.10033,1817.9,1817.8,41.90036]
[1746481983711,3.56313,1817.9,1817.8,41.90036]
[1746481984316,7.29513,1817.9,1817.8,41.90036]
[1746481985207,7.29513,1817.9,1817.8,40.8]
[1746481986120,6.1948,1817.9,1817.8,41.90039]
[1746481986315,6.1948,1817.9,1817.8,43.55809]
[1746481987820,7.29513,1817.9,1817.8,43.55809]
[1746481988418,7.29513,1817.9,1817.8,41.90039]
[1746481990619,7.29513,1817.9,1817.8,43.50999]
[1746481991518,3.732,1817.9,1817.8,52.38099]
[1746481991722,3.732,1817.9,1817.8,53.20579]
[1746481991919,3.2078,1818.2,1818.1,1.10021]
[1746481992117,7.30540741,1818.6,1818.5,1.09997]
[1746481992325,7.30540741,1818.6,1818.5,4.97097]
[1746481992518,7.30540741,1818.6,1818.5,9.97097]
[1746481992721,7.30540741,1818.6,1818.5,4.97097]
[1746481992920,7.30540741,1818.6,1818.5,6.58057]
[1746481993126,7.30540741,1818.6,1818.5,11.58057]
[1746481993924,7.30540741,1818.6,1818.5,52.38057]
[1746481994523,3.21414818,1818.8,1818.5,47.38056]
[1746481994726,1.09991,1818.6,1818.5,46.2806]
[1746481995021,1.09991,1818.6,1818.5,47.38057]
[1746481995525,2.7221,1818.7,1818.5,47.38057]
[1746481996231,1.09991,1818.6,1818.5,46.2806]
[1746481996526,1.09989,1818.7,1818.5,46.2806]
[1746481996727,2.74539,1818.7,1818.6,1.6368]
[1746481998128,6.47739,1818.7,1818.6,1.6368]
[1746481998931,1.09991,1818.6,1818.5,44.671]
[1746481999124,1.09991,1818.6,1818.5,45.77097]
[1746481999125,2.74541,1818.6,1818.5,45.77097]
[1746481999331,1.6455,1818.6,1818.5,47.40777]
[1746481999831,2.74541,1818.6,1818.5,40.8]
[1746482000224,1.10003,1818.4,1818.3,4.97004]
[1746482000924,2.81041,1818.5,1818.4,1.10003]
[1746482001133,2.75008,1818.4,1818.1,1.10019]
[1746482001331,1.10015,1818.2,1818.1,1.10019]
[1746482001533,1.10015,1818.2,1818.1,40.8]
[1746482002026,4.30795,1818.2,1818.1,40.8]
[1746482002232,8.03995,1818.2,1818.1,40.8]
[1746482002934,13.03995,1818.2,1818.1,40.8]
[1746482003135,1.10033,1818.0,1817.9,1.10032]
[1746482003330,1.10033,1817.9,1817.8,4.97037]
[1746482003542,1.10033,1817.9,1817.8,45.77037]
[1746482004335,4.83233,1817.9,1817.8,41.90037]
[1746482004534,6.41423,1817.9,1817.8,40.8]
[1746482004723,3.732,1817.9,1817.8,40.8]
[1746482004928,3.732,1817.9,1817.8,46.90039]
[1746482005123,3.2078,1818.2,1818.1,1.10021]
[1746482005328,5.498,1819.2,1818.1,1.10021]
[1746482005329,1.09995,1818.6,1818.5,1.09996]
[1746482005534,3.54065,1818.6,1818.5,1.09996]
[1746482005732,2.71145,1818.6,1818.5,1.09996]
[1746482005930,5.1292,1818.7,1818.6,1.09991]
[1746482006133,8.8612,1818.7,1818.6,1.09991]
[1746482006438,7.7613,1818.7,1818.6,1.09991]
[1746482006740,6.9398,1818.7,1818.6,1.09991]
[1746482006938,8.5513,1818.7,1818.6,1.09991]
[1746482007236,8.5513,1818.7,1818.5,1.09992]
[1746482007530,1.09994,1818.6,1818.5,1.09992]
[1746482007736,2.71144,1818.6,1818.5,1.09992]
[1746482008134,6.44344,1818.6,1818.5,1.09992]
[1746482008638,3.732,1818.6,1818.5,1.09992]
[1746482009124,4.30768,1818.7,1818.6,1.09991]
[1746482009328,5.92788,1818.7,1818.4,1.6148]
[1746482009527,5.92788,1818.7,1818.5,1.09994]
[1746482009727,5.92788,1818.7,1818.6,1.6189]
[1746482009936,5.92788,1818.7,1818.6,2.71881]
[1746482010237,9.65988,1818.7,1818.6,2.71881]
[1746482011138,9.65988,1818.7,1818.6,1.6189]
[1746482011831,1.09991,1818.6,1818.5,4.96992]
[1746482012030,2.76741,1818.6,1818.5,4.96997]
[1746482012234,6.49941,1818.6,1818.5,4.96997]
[1746482012833,1.09997,1818.5,1818.4,2.79638]
[1746482013029,1.10009,1818.3,1818.2,3.87]
[1746482013238,2.75038,1818.2,1817.8,44.0078]
[1746482013536,1.10033,1817.9,1817.8,45.10816]
[1746482014232,4.83233,1817.9,1817.8,45.10816]
[1746482014837,6.56353,1817.9,1817.8,45.10816]
[1746482015338,5.4632,1817.9,1817.8,45.10816]
[1746482015639,6.56353,1817.9,1817.8,45.10816]
[1746482016139,6.56353,1817.9,1817.8,41.90036]
[1746482017242,6.56353,1817.9,1817.8,40.8]
[1746482018739,6.56353,1817.9,1817.8,41.90039]
[1746482019744,6.56353,1817.9,1817.8,40.8]
[1746482019934,6.56353,1817.9,1817.8,41.90039]
[1746482024242,4.83233,1817.9,1817.8,41.90039]
[1746482024843,6.46453,1817.9,1817.8,41.90039]
[1746482025743,6.46453,1817.9,1817.8,40.8]
[1746482026135,1.10057,1817.5,1817.4,2.71491]
[1746482026537,1.10057,1817.5,1817.4,41.90061]
[1746482026749,1.10088,1817.0,1816.9,18.20751582]
[1746482027138,4.83288,1817.0,1816.9,59.00751582]
[1746482027532,8.04068,1817.0,1816.9,59.00751582]
[1746482027745,4.83288,1817.0,1816.9,60.10845582]
[1746482028941,4.83288,1817.0,1816.9,59.00751582]
[1746482029247,1.101,1816.8,1816.7,7.2897937]
[1746482029538,1.101,1816.8,1816.7,48.0897937]
[1746482030139,4.833,1816.8,1816.7,48.0897937]
[1746482030340,3.732,1816.8,1816.7,50.8937537]
[1746482030937,3.732,1816.8,1816.7,51.6785537]
[1746482031141,2.4711,1817.1,1816.7,50.5774937]
[1746482031339,1.10091,1817.0,1816.9,1.10091]
[1746482031946,1.10091,1817.0,1816.9,2.80381]
[1746482032244,4.83291,1817.0,1816.9,2.80381]
[1746482033949,4.83291,1817.0,1816.9,1.7029]
[1746482035350,1.101,1816.8,1816.7,40.8]
[1746482036151,4.833,1816.8,1816.7,42.4297]
[1746482039752,1.10112,1816.6,1816.5,4.89513]
[1746482040254,1.10112,1816.6,1816.5,45.69513]
[1746482042867,2.75071,1816.7,1816.6,1.10112]
[1746482043064,6.48271,1816.7,1816.6,2.80572]
[1746482044768,6.48271,1816.7,1816.6,1.7046]
[1746482046065,6.48271,1816.7,1816.6,2.80572]
[1746482049970,0.669,1817.0,1816.6,1.7046]
[1746482050171,3.732,1817.0,1816.9,4.30874]
[1746482050367,0.0051,1817.0,1816.9,8.25574]
[1746482050569,0.0051,1817.0,1816.9,14.98044]
[1746482051069,1.7212,1817.7,1817.5,1.10055]
[1746482051375,1.7212,1817.7,1817.6,1.10051]
[1746482051574,3.2078,1817.8,1817.7,1.10045]
[1746482051775,4.8554,1817.8,1817.7,41.90045]
[1746482052070,6.9398,1817.8,1817.7,41.90045]
[1746482052570,3.732,1817.8,1817.7,41.90045]
[1746482052971,3.732,1817.8,1817.7,48.52045]
[1746482053171,7.30540741,1818.0,1817.9,1.10033]
[1746482053367,7.30540741,1818.0,1817.9,4.30813]
[1746482053778,7.30540741,1818.0,1817.9,6.79183]
[1746482054777,0.8285,1818.5,1818.4,1.10003]
[1746482055071,4.5605,1818.5,1818.4,1.10003]
[1746482055374,3.732,1818.5,1818.4,1.10003]
[1746482055571,4.91271561,1818.5,1818.4,1.10003]
[1746482056070,1.18071561,1818.5,1818.4,2.72543]
[1746482059674,1.18071561,1818.5,1818.3,3.2078]
[1746482059883,1.18071561,1818.5,1818.4,1.10003]
[1746482060578,1.18071561,1818.5,1818.4,2.73523]
[1746482060766,2.28069561,1818.5,1818.3,3.2078]
[1746482060967,2.71063,1818.4,1818.3,3.2078]
[1746482061271,1.10017,1818.2,1818.0,1.10023]
[1746482061472,2.79131561,1818.1,1818.0,1.10023]
[1746482061667,2.79131561,1818.1,1817.8,5.5792]
[1746482061873,2.79131561,1818.1,1817.7,40.8]
[1746482061874,5.99911561,1818.1,1817.7,40.8]
[1746482062079,1.10031,1818.0,1817.7,40.8]
[1746482062277,1.6106,1817.9,1817.8,1.10035]
[1746482062474,4.91271561,1818.1,1817.8,5.5792]
[1746482062668,0.08044561,1818.0,1817.9,1.10033]
[1746482067076,1.64474561,1818.0,1817.9,1.10033]
[1746482067270,0.08044561,1818.0,1817.9,1.10033]
[1746482069081,1.64474561,1818.0,1817.9,1.10033]
[1746482069273,2.74501561,1818.0,1817.9,1.10033]
[1746482070081,6.47701561,1818.0,1817.9,1.10033]
[1746482070385,5.45156332,1818.0,1817.7,40.8]
[1746482070580,1.10039,1817.8,1817.7,40.8]
[1746482070886,1.10039,1817.8,1817.7,41.90045]
[1746482071087,3.732,1817.8,1817.7,41.90045]
[1746482071279,6.71595332,1817.8,1817.7,41.90045]
[1746482072295,14.92375332,1817.8,1817.7,40.8]
[1746482072588,15.76285332,1817.8,1817.7,40.8]
[1746482073695,10.76285332,1817.8,1817.7,40.8]
[1746482073984,12.55505332,1817.8,1817.7,40.8]
[1746482074289,7.55505332,1817.8,1817.7,40.8]
[1746482074682,10.76285332,1817.8,1817.7,40.8]
[1746482075492,10.60759,1817.8,1817.7,40.8]
[1746482075694,10.83767103,1817.8,1817.7,40.8]
[1746482075892,7.62987103,1817.8,1817.7,40.8]
[1746482076592,1.10045,1817.7,1817.6,1.10047]
[1746482076794,2.75695,1817.7,1817.6,1.10047]
[1746482077093,6.48895,1817.7,1817.6,41.90047]
[1746482077589,6.71903103,1817.7,1817.6,41.90047]
[1746482081094,6.79385965,1817.7,1817.6,41.90047]
[1746482083490,4.03690965,1817.7,1817.6,46.90047]
[1746482083793,4.03690965,1817.7,1817.6,52.68047]
[1746482084292,0.30490965,1817.7,1817.6,52.68047]
[1746482086295,2.68337,1818.2,1818.1,0.72047173]
[1746482086997,1.5832,1818.2,1818.1,0.72047173]
[1746482087189,5.3152,1818.2,1818.1,0.72047173]
[1746482087889,3.732,1818.2,1818.1,0.72047173]
[1746482088394,6.88885,1818.4,1818.3,1.10009]
[1746482088695,4.30785,1818.4,1818.3,41.90009]
[1746482088900,3.2078,1818.4,1818.3,41.90009]
[1746482089096,8.03983,1818.4,1818.3,41.90009]
[1746482089290,9.77563,1818.4,1818.3,41.90009]
[1746482089691,6.56783,1818.4,1818.3,41.90009]
[1746482089892,2.75025,1818.3,1818.0,1.10024]
[1746482090090,2.6161,1818.2,1818.1,1.10021]
[1746482090393,3.7163,1818.2,1818.1,41.90021]
[1746482090593,2.6161,1818.2,1818.1,41.90021]
[1746482091293,6.3481,1818.2,1818.1,41.90021]
[1746482091499,5.4678,1818.2,1818.1,41.90021]
[1746482091887,6.64277863,1818.2,1818.1,41.90021]
[1746482093995,3.80682863,1818.2,1818.1,41.90021]
[1746482094197,0.07482863,1818.2,1818.1,41.90021]
[1746482095299,0.07482863,1818.2,1818.1,42.74961]
[1746482097197,3.2078,1818.6,1818.5,1.09997]
[1746482097903,3.2078,1818.6,1818.5,2.73097]
[1746482098203,3.28263726,1818.6,1818.5,2.73097]
[1746482100108,3.28263726,1818.6,1818.5,8.55627]
[1746482100406,0.07483726,1818.6,1818.5,8.55627]
[1746482102705,0.07483726,1818.6,1818.5,3.55627]
[1746482103006,0.07483726,1818.6,1818.5,8.55627]
[1746482103203,0.07483726,1818.6,1818.5,7.28827]
[1746482103402,0.07483726,1818.6,1818.5,12.28827]
[1746482103599,3.2078,1818.8,1818.7,1.09985]
[1746482103798,3.2078,1818.8,1818.7,4.94685]
[1746482103999,3.28262863,1818.8,1818.7,4.94685]
[1746482106110,3.28262863,1818.8,1818.7,8.67885]
[1746482106812,3.28262863,1818.8,1818.7,49.47885]
[1746482107206,0.07482863,1818.8,1818.7,57.68665]
[1746482107404,3.2078,1819.5,1818.7,56.5868]
[1746482107603,4.30716,1819.5,1819.4,1.09937]
[1746482107804,6.00586,1819.5,1819.4,1.09937]
[1746482108003,4.9065,1819.5,1819.4,1.09937]
[1746482108203,8.6385,1819.5,1819.4,43.53087]
[1746482108603,6.9398,1819.5,1819.4,43.53087]
[1746482108999,3.732,1819.5,1819.4,43.53087]
[1746482109203,7.30540741,1819.6,1819.5,1.09936]
[1746482109407,7.30540741,1819.6,1819.5,2.77506]
[1746482109605,8.93740741,1819.6,1819.5,2.77506]
[1746482109807,8.93740741,1819.6,1819.5,43.57506]
[1746482110016,9.01223604,1819.6,1819.5,43.57506]
[1746482110507,2.80612863,1819.6,1819.5,40.8]
[1746482110707,3.69472863,1819.6,1819.5,40.8]
[1746482111108,7.42672863,1819.6,1819.5,40.8]
[1746482111613,12.42672863,1819.6,1819.5,40.8]
[1746482112416,12.42672863,1819.6,1819.5,41.89936]
[1746482112612,7.42672863,1819.6,1819.5,41.89936]
[1746482114510,6.32742863,1819.6,1819.5,41.89936]
[1746482114909,3.80682863,1819.6,1819.5,41.89936]
[1746482115415,0.07482863,1819.6,1819.5,41.89936]
[1746482115620,0.07482863,1819.6,1819.5,43.61836]
[1746482115815,1.7191,1819.8,1819.7,0.94958274]
[1746482116011,3.2078,1820.0,1819.7,5.0]
[1746482116315,1.09899,1820.2,1820.1,1.09899]
[1746482117111,1.09899,1820.2,1819.6,3.761]
[1746482117112,2.74767,1820.0,1819.7,1.09923]
[1746482117318,1.09912,1819.9,1819.8,1.09917]
[1746482117615,1.95922,1819.9,1819.8,1.09917]
[1746482117817,0.8601,1819.9,1819.8,1.09917]
[1746482118119,1.09907,1820.0,1819.9,1.09907]
[1746482118319,1.09912,1819.9,1819.8,2.83284]
[1746482118520,1.09912,1819.9,1819.8,1.7337]
[1746482118813,1.09924,1819.7,1819.6,6.9688]
[1746482119115,1.09924,1819.7,1819.6,3.761]
[1746482119308,1.0993,1819.6,1819.5,42.5337]
[1746482119515,4.4336,1819.6,1819.5,40.8]
[1746482119709,7.6414,1819.6,1819.5,40.8]
[1746482120109,11.3734,1819.6,1819.5,40.8]
[1746482121117,6.9398,1819.6,1819.5,41.89936]
[1746482121424,1.09927,1819.7,1819.6,1.02447137]
[1746482121720,1.09927,1819.7,1819.6,2.75317137]
[1746482121919,1.0993,1819.6,1819.5,41.89935]
[1746482122617,4.4055,1819.6,1819.5,41.89935]
[1746482123821,3.3062,1819.6,1819.5,41.89936]
[1746482127427,3.38102863,1819.6,1819.5,41.89936]
[1746482127733,1.81902863,1819.6,1819.5,41.89936]
[1746482128931,1.82740455,1819.6,1819.5,41.89936]
[1746482130628,2.92670455,1819.6,1819.5,41.89936]
[1746482130831,4.57510455,1819.6,1819.5,41.89936]
[1746482131135,8.30710455,1819.6,1819.5,41.89936]
[1746482131533,8.30710455,1819.6,1819.5,40.8]
[1746482131734,8.30710455,1819.6,1819.5,41.89936]
[1746482131934,7.20780455,1819.6,1819.5,41.89936]
[1746482132235,3.47580455,1819.6,1819.5,41.89936]
[1746482132433,0.08320455,1819.6,1819.5,41.89936]
[1746482133334,0.15803318,1819.6,1819.5,41.89936]
[1746482134434,1.25733318,1819.6,1819.5,41.89936]
[1746482135534,0.15803318,1819.6,1819.5,41.89936]
[1746482136335,1.25733318,1819.6,1819.5,41.89936]
[1746482136534,0.15803318,1819.6,1819.5,41.89936]
[1746482138537,1.25733318,1819.6,1819.5,41.89936]
[1746482139138,5.06416181,1819.6,1819.5,41.89936]
[1746482140042,3.96486181,1819.6,1819.5,41.89936]
[1746482140242,5.06416181,1819.6,1819.5,41.89936]
[1746482142143,1.33216181,1819.6,1819.5,41.89936]
[1746482143745,1.33216181,1819.6,1819.5,40.8]
[1746482144242,6.75186181,1819.6,1819.5,40.8]
[1746482145240,11.75186181,1819.6,1819.5,40.8]
[1746482145541,6.75186181,1819.6,1819.5,40.8]
[1746482145743,6.79742281,1819.6,1819.5,40.8]
[1746482147243,1.09936,1819.5,1819.4,1.09942]
[1746482147435,7.58836,1819.5,1819.4,1.09942]
[1746482147839,1.09954,1819.2,1819.1,3.2078]
[1746482148142,1.0996,1819.1,1819.0,1.6863]
[1746482148340,4.3808,1819.1,1819.0,42.4863]
[1746482148946,4.65084689,1819.1,1819.0,42.4863]
[1746482149143,4.65084689,1819.1,1819.0,40.8]
[1746482149349,8.38284689,1819.1,1819.0,40.8]
[1746482149735,11.59064689,1819.1,1819.0,40.8]
[1746482152150,9.98274689,1819.1,1819.0,40.8]
[1746482152338,9.98274689,1819.1,1819.0,41.89967]
[1746482153047,9.98274689,1819.1,1819.0,40.8]
[1746482156450,1.09973,1818.9,1818.8,2.72124]
[1746482156851,1.09973,1818.9,1818.8,43.52124]
[1746482156852,1.36977689,1818.9,1818.8,43.52124]
[1746482157048,5.10177689,1818.9,1818.8,43.52124]
[1746482157346,5.10177689,1818.9,1818.8,48.52124]
[1746482157554,4.00204689,1818.9,1818.8,43.52124]
[1746482158150,0.27004689,1818.9,1818.8,43.52124]
[1746482163350,0.27004689,1818.9,1818.8,46.72904]
[1746482166558,0.27004689,1818.9,1818.8,43.52124]
[1746482166770,0.27004689,1818.9,1818.8,46.72904]
[1746482166951,0.27004689,1818.9,1818.8,51.72904]
[1746482167352,0.27004689,1818.9,1818.8,55.46104]
[1746482171661,0.27004689,1818.9,1818.8,50.46104]
[1746482180269,1.5729,1819.3,1819.2,1.09954]
[1746482180469,6.5729,1819.3,1819.2,1.09954]
[1746482180772,1.5729,1819.3,1819.2,1.09954]
[1746482180961,1.5729,1819.3,1819.2,41.89954]
[1746482181567,1.5729,1819.3,1819.2,43.55684]
[1746482182168,5.3049,1819.3,1819.2,43.55684]
[1746482186274,5.3049,1819.3,1819.2,41.89954]
[1746482190177,1.5729,1819.3,1819.2,41.89954]
[1746482190476,1.09944,1819.4,1819.3,1.09948]
[1746482190678,2.81874,1819.4,1819.3,1.09948]
[1746482191166,6.55074,1819.4,1819.3,1.09948]
[1746482196384,6.55074,1819.4,1819.3,41.89948]
[1746482203391,6.55860915,1819.4,1819.3,41.89948]
[1746482204298,4.83930915,1819.4,1819.3,41.89948]
[1746482204589,6.51650915,1819.4,1819.3,41.89948]
[1746482208385,1.09954,1819.2,1819.1,3.704]
[1746482208590,1.0996,1819.1,1819.0,1.09962]
[1746482208794,1.09967,1819.0,1818.9,4.30752]
[1746482209088,4.83167,1819.0,1818.9,45.10752]
[1746482209893,6.56637,1819.0,1818.9,45.10752]
[1746482211191,6.56637,1819.0,1818.9,41.89972]
[1746482215096,6.56637,1819.0,1818.9,1.09972]
[1746482215596,6.56637,1819.0,1818.9,40.8]
[1746482217902,4.83167,1819.0,1818.9,40.8]
[1746482218094,4.83167,1819.0,1818.9,42.4265]
[1746482218597,6.48067,1819.0,1818.9,40.8]
[1746482220198,1.09985,1818.7,1818.6,3.2078]
[1746482220403,5.29435,1818.9,1818.4,4.8494]
[1746482220593,1.09997,1818.5,1818.4,44.0078]
[1746482220794,1.09997,1818.5,1818.4,40.8]
[1746482221093,3.68997,1818.5,1818.4,40.8]
[1746482221295,7.42197,1818.5,1818.4,40.8]
[1746482221997,1.10009,1818.3,1818.2,13.6715437]
[1746482222199,1.10009,1818.3,1818.2,8.9313937]
[1746482222396,1.10009,1818.3,1818.2,49.7313937]
[1746482222598,2.00089,1818.3,1818.2,42.4416]
[1746482223196,5.73289,1818.3,1818.2,40.8]
[1746482223402,1.10015,1818.2,1818.1,7.2897937]
[1746482223600,2.82765,1818.2,1818.1,7.2897937]
[1746482223905,2.82765,1818.2,1818.1,48.0897937]
[1746482224096,6.55965,1818.2,1818.1,48.0897937]
[1746482225505,9.76745,1818.2,1818.1,7.2897937]
[1746482225702,14.76745,1818.2,1818.1,7.2897937]
[1746482226792,14.76745,1818.2,1817.8,40.8]
[1746482226793,1.10033,1817.9,1817.8,40.8]
[1746482226997,1.10039,1817.8,1817.7,1.6109]
[1746482227496,1.10039,1817.8,1817.7,42.4109]
[1746482227691,1.10039,1817.8,1817.7,43.51135]
[1746482227891,4.83236,1817.9,1817.8,1.10039]
[1746482228202,4.30796,1818.2,1818.1,1.10021]
[1746482228703,4.30796,1818.2,1818.1,41.90021]
[1746482229201,6.9398,1818.2,1818.1,43.49881]
[1746482229803,3.732,1818.2,1818.1,48.49881]
[1746482230299,5.46861801,1818.5,1818.4,1.10003]
[1746482231097,4.30774,1818.6,1818.5,1.09997]
[1746482231498,4.30774,1818.6,1818.5,2.69877]
[1746482231894,3.2078,1818.6,1818.5,2.69877]
[1746482232101,6.9398,1818.6,1818.5,2.69877]
[1746482237515,1.10015,1818.2,1818.1,41.90019]
[1746482237809,1.10015,1818.2,1818.1,40.8]
[1746482238014,1.10033,1817.9,1817.8,2.80854]
[1746482238513,1.10033,1817.9,1817.8,43.60854]
[1746482239211,4.83233,1817.9,1817.8,43.60854]
[1746482242616,4.83233,1817.9,1817.8,42.5082]
[1746482243716,4.83233,1817.9,1817.8,40.8]
[1746482245420,1.10039,1817.8,1817.7,1.6111]
[1746482245608,1.10057,1817.5,1817.4,4.30839]
[1746482246017,1.10057,1817.5,1817.4,45.10839]
[1746482246211,4.83257,1817.5,1817.4,46.72639]
[1746482247916,3.732,1817.5,1817.4,46.72639]
[1746482249218,1.10049,1817.7,1817.6,1.10051]
[1746482249915,1.10049,1817.7,1817.6,2.69251]
[1746482250115,4.83249,1817.7,1817.6,2.69251]
[1746482256222,5.66759,1817.7,1817.6,2.69251]
[1746482261519,5.66759,1817.7,1817.6,43.49251]
[1746482262619,5.66759,1817.7,1817.6,42.392]
[1746482263025,5.66759,1817.7,1817.6,40.8]
[1746482263420,5.66759,1817.7,1817.6,41.90051]
[1746482264318,4.83249,1817.7,1817.6,41.90051]
[1746482264722,4.83249,1817.7,1817.6,43.52151]
[1746482267226,3.732,1817.7,1817.6,44.41051]
[1746482267435,3.732,1817.7,1817.6,45.30921]
[1746482268128,1.10044,1817.8,1817.7,1.10045]
[1746482268327,1.10044,1817.8,1817.7,2.79345]
[1746482269332,4.83244,1817.8,1817.7,2.79345]
[1746482271436,6.47314,1817.8,1817.7,2.79345]
[1746482273038,4.83244,1817.8,1817.7,2.79345]
[1746482274240,1.10044,1817.8,1817.7,2.79345]
[1746482275233,6.51034,1817.8,1817.7,2.79345]
[1746482282749,6.51034,1817.8,1817.7,1.10045]
[1746482283950,1.10045,1817.7,1817.6,40.8]
[1746482284151,2.68505,1817.7,1817.6,40.8]
[1746482285149,6.41705,1817.7,1817.6,40.8]
[1746482285650,6.41705,1817.7,1817.6,41.90051]
[1746482286352,11.88566801,1817.7,1817.6,41.90051]
[1746482292855,11.88566801,1817.7,1817.6,40.8]
[1746482293560,1.10051,1817.6,1817.5,1.7095]
[1746482293856,4.51001,1817.6,1817.5,1.7095]
[1746482294047,8.24201,1817.6,1817.5,42.5095]
[1746482296763,13.71062801,1817.6,1817.5,1.7095]
[1746482301763,1.10075,1817.2,1817.1,3.2078]
[1746482301955,1.10075,1817.2,1817.1,1.708]
[1746482302263,4.83275,1817.2,1817.1,42.508]
[1746482302762,4.83275,1817.2,1817.1,43.60881]
[1746482303860,4.83275,1817.2,1817.1,40.8]
[1746482304264,4.83275,1817.2,1817.1,43.47571]
[1746482304465,4.83275,1817.2,1817.1,42.3749]
[1746482311265,4.83275,1817.2,1817.1,43.47571]
[1746482311671,4.83275,1817.2,1817.1,42.3749]
[1746482324073,4.83275,1817.2,1817.1,1.5749]
[1746482324277,7.30495,1817.2,1817.1,1.5749]
[1746482325678,7.30495,1817.2,1816.9,0.8942]
[1746482325679,1.10088,1817.0,1816.9,0.8942]
[1746482325874,1.10088,1817.0,1816.9,1.6097]
[1746482326083,3.53018,1817.0,1816.9,1.6097]
[1746482326278,7.26218,1817.0,1816.9,1.6097]
[1746482326777,1.10094,1816.9,1816.8,40.8]
[1746482327076,1.10094,1816.9,1816.8,42.4097]
[1746482327077,5.90974,1816.9,1816.8,42.4097]
[1746482327273,1.10106,1816.7,1816.6,0.8407]
[1746482327577,1.10106,1816.7,1816.6,3.55152]
[1746482327876,1.10106,1816.7,1816.6,44.35152]
[1746482329679,1.10106,1816.7,1816.4,9.14418]
[1746482329680,1.1014,1816.2,1816.1,1.10141]
[1746482329879,1.1014,1816.2,1816.1,2.75321]
[1746482330180,1.10136,1816.3,1816.2,1.10135]
[1746482330878,6.8418,1816.7,1816.2,1.10135]
[1746482330879,9.59453,1816.7,1816.2,7.75341]
[1746482331081,1.1012,1816.6,1816.5,1.10113]
[1746482331382,1.10122,1816.5,1816.4,2.68369]
[1746482331571,1.10122,1816.5,1816.4,1.5825]
[1746482331771,1.10116,1816.6,1816.5,1.10114]
[1746482331970,1.10116,1816.6,1816.5,1.6954]
[1746482332676,1.10116,1816.6,1816.5,42.4954]
[1746482334585,1.10136,1816.2,1816.1,3.2078]
[1746482334785,1.10148,1816.0,1815.9,0.8931]
[1746482335081,1.10148,1816.0,1815.9,41.6931]
[1746482335781,2.73688,1816.0,1815.9,41.6931]
[1746482336180,2.73688,1816.0,1815.9,42.79464]
[1746482336386,1.6354,1816.3,1815.9,41.6931]
[1746482336588,1.10142,1816.2,1816.1,1.1014]
[1746482337486,1.10135,1816.3,1816.2,1.10132]
[1746482337678,1.6922,1816.6,1816.0,6.8428]
[1746482337988,1.10124,1816.5,1816.4,1.10121]
[1746482339390,6.56985801,1816.5,1816.4,1.10121]
[1746482340189,10.30185801,1816.5,1816.4,1.10121]
[1746482342093,4.83324,1816.5,1816.4,1.10121]
[1746482343995,1.10124,1816.4,1816.3,1.98184]
[1746482345590,1.10124,1816.4,1816.3,1.1013]
[1746482345786,1.10142,1816.2,1816.0,7.26588]
[1746482345996,1.10142,1816.2,1816.1,1.10137]
[1746482346196,4.83342,1816.2,1816.1,1.10137]
[1746482346503,5.67672,1816.2,1816.1,1.10137]
[1746482347792,5.67672,1816.2,1816.1,2.73827]
[1746482350103,7.35852,1816.2,1816.1,2.73827]
[1746482350501,1.10148,1816.0,1815.9,45.1093]
[1746482350693,1.10148,1816.0,1815.9,46.7855]
[1746482351102,4.83348,1816.0,1815.9,46.7855]
[1746482351303,5.69188,1816.0,1815.9,46.7855]
[1746482352205,5.69188,1816.0,1815.9,46.78554]
[1746482353904,5.69188,1816.0,1815.9,43.57774]